Cogmind - Beta 9.3 @@@ ROGUE MODE // 2020.01.02 @ 14:56:06 Player: Cipherpunk Result: Destroyed by Alpha 7 with Multirail Performance ------------- Evolutions (8) 4000 Regions Visited (15) 3000 Robots Destroyed (87) 435 Value Destroyed (2092) 2092 Prototype IDs (39) 780 Alien Tech Used (0) 0 Bonus (2443) 2443 TOTAL SCORE: 12750 Bonus ------- Triggered Max Security 2000 High Alert Combat Kills 11 Follower Combat Kills 132 Aligned with FarCom 300 Cogmind --------- Core Integrity 0/1450 Matter 24/300 Energy 98/100 System Corruption 19% Temperature Cool (0) Movement Core (50) Location -2/Section 7 Parts ------- > --- POWER (2) -------- (None) > --- PROPULSION (4) --- (None) > --- UTILITY (15) ----- Advanced Hacking Suite > --- WEAPON (2) ------- (None) > --- INVENTORY (4) ---- Light Particle Reactor Antimissile System Chronowheel Fusion Bomb Launcher Peak State ------------ > --- POWER ------------ Light Antimatter Reactor Light Particle Reactor > --- PROPULSION ------- Nuclear Pulse Thruster Field Propulsion Drive Nuclear Pulse Array > --- UTILITY ---------- Triangulator Phase Shifter Antimissile System Hacking Suite Advanced Hacking Suite Advanced Hacking Suite Advanced Hacking Suite Advanced Hacking Suite System Shield System Shield Improved System Shield Advanced System Shield Advanced Recalibrator > --- WEAPON ----------- Katana > --- INVENTORY -------- Impulse Thruster Improved Utility Shielding Chronowheel Fusion Bomb Launcher [Rating: 114] Favorites ----------- Power Light Ion Engine Engine Light Ion Engine Power Core Light Nuclear Core Reactor Light Antimatter Reactor Propulsion Wheel Treads Light Treads Leg Aluminum Leg Wheel Wheel Flight Unit VTOL Module Utility Large Storage Unit Device Improved Terrain Scanner Storage Large Storage Unit Processor Terrain Scan Processor Hackware System Shield Protection Improved Light Armor Plating Weapon Beam Cannon Energy Gun EM Shotgun Energy Cannon Beam Cannon Ballistic Gun Minigun Launcher Improved Grenade Launcher Special Weapon Improved Remote Datajack Impact Weapon Heavy Mace Slashing Weapon Katana Build | -11 -10 -10 -9 -9 -9 -8 -8 -7 -6 -5 -4 -3 -2 -2 -2 ------- Run | Scr Mat Min Mat Min Exi Min Mat Fac Fac Fac Fac Res Res Qua Sec Slots Evolved 16 | . . . 2 . . . 2 2 2 2 2 2 2 . . Power 1 | . . . . . . . . . . . . 1 . . . Propulsion 2 | . . . . . . . . 1 . . . 1 . . . Utility 13 | . . . 2 . . . 2 1 2 2 2 . 2 . . Weapon . | . . . . . . . . . . . . . . . . Parts Attached 142 | . 18 7 35 2 3 2 18 12 10 6 8 19 1 . 1 Power 15 | . 1 3 5 . . . 2 . . 1 1 2 . . . Engine 11 | . 1 2 5 . . . 2 . . 1 . . . . . Core 1 | . . 1 . . . . . . . . . . . . . Reactor 3 | . . . . . . . . . . . 1 2 . . . Propulsion 28 | . 7 1 6 . . . 3 4 2 2 1 2 . . . Treads 7 | . . . 3 . . . 3 1 . . . . . . . Leg 5 | . 5 . . . . . . . . . . . . . . Wheel 6 | . 2 1 3 . . . . . . . . . . . . Hover . | . . . . . . . . . . . . . . . . Flight 10 | . . . . . . . . 3 2 2 1 2 . . . Utility 58 | . 3 2 8 2 1 2 4 7 7 2 4 14 1 . 1 Device 20 | . . 1 1 . . . 1 2 3 2 2 7 . . 1 Storage 6 | . 2 . 2 . 1 1 . . . . . . . . . Processor 7 | . 1 . 1 1 . . 1 1 . . . 2 . . . Hackware 13 | . . . . . . . . 4 3 . 2 4 . . . Protection 12 | . . 1 4 1 . 1 2 . 1 . . 1 1 . . Artifact . | . . . . . . . . . . . . . . . . Weapon 41 | . 7 1 16 . 2 . 9 1 1 1 2 1 . . . Energy Gun 4 | . 4 . . . . . . . . . . . . . . Energy Cannon 10 | . 2 . 2 . 2 . 4 . . . . . . . . Ballistic Gun 10 | . 1 . 9 . . . . . . . . . . . . Ballistic Cannon . | . . . . . . . . . . . . . . . . Launcher 10 | . . 1 3 . . . 3 . 1 1 . 1 . . . Special Weapon 1 | . . . . . . . . . . . 1 . . . . Impact Weapon 4 | . . . 2 . . . 2 . . . . . . . . Slashing Weapon 2 | . . . . . . . . 1 . . 1 . . . . Piercing Weapon . | . . . . . . . . . . . . . . . . Special Melee Weapon . | . . . . . . . . . . . . . . . . Unidentified Prototypes 4 | . . 1 1 . . . . . . . . 1 . . 1 Parts Lost 49 | . 5 4 11 . . . 4 . 2 4 1 1 3 7 7 Power 6 | . 1 1 2 . . . 1 . . . . . . 1 . Propulsion 12 | . 1 1 3 . . . 1 . 2 1 . . 2 1 . Utility 19 | . . 1 1 . . . 1 . . 2 1 1 1 5 6 Weapon 12 | . 3 1 5 . . . 1 . . 1 . . . . 1 Highest Loss Streak 6 | . 5 1 6 . . . 4 . 1 4 1 1 3 5 6 Average Slot Usage (%) 89 | . 93 91 89 100 99 100 99 88 97 91 75 87 80 47 26 Engine 7 | . 13 8 7 11 11 11 9 7 6 4 5 . . . . Treads 2 | . . . 3 . . . 15 . . . . . . . . Leg 2 | . 20 . . . . . . . . . . . . . . Wheel 9 | . 7 28 13 22 22 22 1 . . . . . . . . Flight 4 | . . . . . . . . 22 20 15 9 12 11 1 . Device 7 | . . 9 3 . . . 9 11 11 15 11 17 10 4 2 Storage 16 | . 18 14 25 33 33 33 27 1 . . . . . . . Processor 4 | . 5 . 6 . 11 . 9 7 6 5 5 2 4 3 . Hackware 11 | . . . . . . . . 27 40 34 30 38 39 29 19 Protection 4 | . . . 7 11 . 10 8 . . 5 5 . 4 1 . Energy Gun 4 | . 19 23 . . . . . . . . . . . . . Energy Cannon 4 | . 1 . 2 22 21 22 3 . . . . . . . . Ballistic Gun 2 | . 6 . 14 . . . . . . . . . . . . Launcher 1 | . . . 1 . . . 7 . 4 3 . . . . . Impact Weapon 1 | . . . 2 . . . 6 . . . . . . . . Slashing Weapon 1 | . . . . . . . . 6 6 2 3 4 4 4 3 Naked Turns . | . . . . . . . . . . . . . . . . Heaviest Build 82 | 10 43 43 60 60 57 80 82 79 16 19 25 36 36 17 3 Greatest Support 42 | 20 32 32 40 20 20 20 42 42 20 20 28 37 37 20 3 Greatest Overweight (x) 18 | . 1 1 18 2 2 3 8 1 1 . . . . 4 . Average Overweight (x) . | . . . 1 2 2 2 1 . . . . . . . . Largest Inventory Capacity 24 | . 16 16 22 22 22 24 24 24 4 4 4 4 4 4 4 Average Capacity 13 | . 8 10 18 22 22 23 24 5 4 4 4 4 4 4 4 Most Carried 24 | . 9 10 22 22 22 22 24 24 4 4 4 4 4 4 4 Average Carried 11 | . 6 9 15 21 21 20 21 5 3 3 3 3 3 4 4 Final Capacity 24 | 6 16 10 22 22 22 24 24 4 4 4 4 4 4 4 4 Final Carried 24 | 6 9 10 21 22 22 20 24 4 4 4 4 4 4 4 4 Class Distribution -------------------- 26% | Hauler-Mutant 21% | Mutant 18% | Wizard-Mutant 11% | Hauler-Assassin 7% | Wizard-Scout 5% | Hacker-Scout 4% | Scavenger-Mutant Dominant Class ---------------- Mutant | -10/Materials Mutant | -10/Mines Hauler-Mutant | -9/Materials Hauler-Mutant | -9/Mines Hauler-Mutant | -9/Exiles Hauler-Mutant | -8/Mines Hauler-Assassin | -8/Materials Hacker-Scout | -7/Factory Wizard-Scout | -6/Factory Wizard-Scout | -5/Factory Wizard-Mutant | -4/Factory Wizard-Mutant | -3/Research Wizard-Mutant | -2/Research Wizard-Mutant | -2/Quarantine Wizard-Mutant | -2/Section 7 Resources | -11 -10 -10 -9 -9 -9 -8 -8 -7 -6 -5 -4 -3 -2 -2 -2 ----------- Run | Scr Mat Min Mat Min Exi Min Mat Fac Fac Fac Fac Res Res Qua Sec Matter Collected 1918 | 200 295 90 561 20 . 60 217 116 98 . 261 . . . . Remotely . | . . . . . . . . . . . . . . . . Salvage Created 2426 | . 683 147 658 . . 23 770 116 29 . . . . . . Parts 138 | . 28 15 52 . . 2 37 3 1 . . . . . . Haulers Intercepted 3 | . 2 . 1 . . . . . . . . . . . . Recyclers Shooed 3 | . . . . . . . 3 . . . . . . . . Parts Field Recycled . | . . . . . . . . . . . . . . . . Retrieved Matter . | . . . . . . . . . . . . . . . . Parts Self-Destructed . | . . . . . . . . . . . . . . . . Prevented . | . . . . . . . . . . . . . . . . Kills | -11 -10 -10 -9 -9 -9 -8 -8 -7 -6 -5 -4 -3 -2 -2 -2 ------- Run | Scr Mat Min Mat Min Exi Min Mat Fac Fac Fac Fac Res Res Qua Sec Combat Hostiles Destroyed 61 | . 12 10 23 . . . 15 . 1 . . . . . . Melee 1 | . . . 1 . . . . . . . . . . . . Guns 28 | . 10 7 11 . . . . . . . . . . . . Cannons 4 | . 2 . 1 . . . 1 . . . . . . . . AOE 27 | . . 3 9 . . . 14 . 1 . . . . . . Classes Destroyed 12 | . 7 1 1 . . 1 2 . . . . . . . . Worker 5 | . 1 . 1 . . . . 3 . . . . . . . Builder 2 | . . . . . . . 2 . . . . . . . . Tunneler 2 | . . . . . . 1 1 . . . . . . . . Hauler 3 | . 2 . 1 . . . . . . . . . . . . Recycler 6 | . 1 . 1 . . . 4 . . . . . . . . Operator 5 | . 1 . 1 . . . 2 1 . . . . . . . Watcher 3 | . 1 . . . . . 1 1 . . . . . . . Swarmer 24 | . 3 7 13 . . . . . 1 . . . . . . Grunt 26 | . 9 . 5 . . . 12 . . . . . . . . Duelist 1 | . . . . . . . 1 . . . . . . . . Sentry 7 | . . . 5 . . . 2 . . . . . . . . Assembled 3 | . . 3 . . . . . . . . . . . . . Best Kill Streak 13 | . 4 3 9 . . 1 13 2 1 . . . . . . Combat Bots Only 6 | . 3 3 4 . . . 6 . 1 . . . . . . Max Kills in Single Turn 4 | . 2 3 4 . . 1 3 1 1 . . . . . . Gunslinging . | . . . . . . . . . . . . . . . . Exploded 3 | . . 2 3 . . . 2 . 1 . . . . . . Melee 1 | . . . 1 . . . . . . . . . . . . Uniques/NPCs Destroyed . | . . . . . . . . . . . . . . . . Combat | -11 -10 -10 -9 -9 -9 -8 -8 -7 -6 -5 -4 -3 -2 -2 -2 -------- Run | Scr Mat Min Mat Min Exi Min Mat Fac Fac Fac Fac Res Res Qua Sec Damage Taken 6729 | . 890 244 1481 167 . . 829 38 202 510 116 142 234 754 1122 Core 2292 | . 117 23 348 28 . . 79 18 58 75 52 39 48 440 967 Absorbed by Shields . | . . . . . . . . . . . . . . . . Core Remaining (%) 78 | 100 . 44 . . . 6 85 97 93 92 95 97 . . . Volleys Fired 179 | . 61 24 45 4 . 6 30 . 5 4 . . . . . Largest 2 | . 2 2 2 2 . 2 2 . 1 1 . . . . . Hottest 136 | . 136 90 120 120 . 120 120 . 33 33 . . . . . Shots Fired 273 | . 103 36 68 8 . 12 37 . 5 4 . . . . . Gun 195 | . 101 35 59 . . . . . . . . . . . . Cannon 38 | . 2 . 2 8 . 12 14 . . . . . . . . Launcher 40 | . . 1 7 . . . 23 . 5 4 . . . . . Special . | . . . . . . . . . . . . . . . . Kinetic 116 | . 57 . 59 . . . . . . . . . . . . Thermal 40 | . 4 . 2 8 . 12 14 . . . . . . . . Explosive 31 | . . 1 7 . . . 23 . . . . . . . . Electromagnetic 86 | . 42 35 . . . . . . 5 4 . . . . . Robot Hit Streak 10 | . 10 4 9 2 . 6 5 . . 2 . . . . . Robot Miss Streak 8 | . 7 8 5 2 . 1 3 . 5 1 . . . . . Penetration Max . | . . . . . . . . . . . . . . . . Secondary Targets 3 | . 1 1 1 . . . . . . . . . . . . Max Gunslinging Chain 1 | . 1 1 1 . . . . . . . . . . . . Shots Hit Robots 198 | . 73 23 51 4 . 9 24 10 . 3 . 1 . . . Core Hits 150 | . 31 19 34 . . 1 55 4 3 2 . 1 . . . Critical Hits . | . . . . . . . . . . . . . . . . Critical Kills . | . . . . . . . . . . . . . . . . Critical Parts Destroyed . | . . . . . . . . . . . . . . . . Melee Attacks 210 | . . . 15 . . . 20 23 8 . 7 31 4 90 12 Impact 35 | . . . 15 . . . 20 . . . . . . . . Slashing 175 | . . . . . . . . 23 8 . 7 31 4 90 12 Piercing . | . . . . . . . . . . . . . . . . Sneak Attacks 8 | . . . 2 . . . 1 5 . . . . . . . Combat Hostiles . | . . . . . . . . . . . . . . . . Follow-up Attacks . | . . . . . . . . . . . . . . . . Damage Inflicted 6554 | . 971 287 1679 36 . 159 2429 751 107 91 . 44 . . . Guns 1604 | . 887 183 534 . . . . . . . . . . . . Cannons 464 | . 42 . 35 36 . 159 192 . . . . . . . . Explosions 3196 | . 42 104 737 . . . 2115 . 107 91 . . . . . Melee 1290 | . . . 373 . . . 122 751 . . . 44 . . . Ramming . | . . . . . . . . . . . . . . . . Kinetic 985 | . 451 . 534 . . . . . . . . . . . . Thermal 614 | . 84 62 35 36 . 159 238 . . . . . . . . Explosive 2848 | . . 42 737 . . . 2069 . . . . . . . . Electromagnetic 817 | . 436 183 . . . . . . 107 91 . . . . . Impact 495 | . . . 373 . . . 122 . . . . . . . . Slashing 795 | . . . . . . . . 751 . . . 44 . . . Piercing . | . . . . . . . . . . . . . . . . Highest Corruption 19 | . . 3 . . . . . . . . . . . 19 19 Average Corruption 10 | . . 2 . . . . . . . . . . . 15 19 Corruption Purged . | . . . . . . . . . . . . . . . . Effects 37 | . . 6 . . . . . . . . . . . 18 13 Message Errors 4 | . . 2 . . . . . . . . . . . 2 . Matter Fused 7 | . . 1 . . . . . . . . . . . 3 3 Heat Flow Errors 3 | . . . . . . . . . . . . . . 1 2 Energy Discharges 4 | . . 2 . . . . . . . . . . . 1 1 Parts Rejected 1 | . . . . . . . . . . . . . . 1 . Data Loss (minor) 2 | . . 1 . . . . . . . . . . . . 1 Data Loss (major) 1 | . . . . . . . . . . . . . . . 1 Misdirections 5 | . . . . . . . . . . . . . . 3 2 Targeting Errors 10 | . . . . . . . . . . . . . . 7 3 Overload Shots . | . . . . . . . . . . . . . . . . Overflow Damage 417 | . . . 82 . . . 29 306 . . . . . . . Projectiles . | . . . . . . . . . . . . . . . . Explosions 35 | . . . 10 . . . 25 . . . . . . . . Melee 382 | . . . 72 . . . 4 306 . . . . . . . Knockbacks 1 | . . . 1 . . . . . . . . . . . . Impact 1 | . . . 1 . . . . . . . . . . . . Kinetic . | . . . . . . . . . . . . . . . . Secondary . | . . . . . . . . . . . . . . . . Self-Inflicted Damage 296 | . 12 24 61 . . . 199 . . . . . . . . Shots 9 | . 1 1 3 . . . 4 . . . . . . . . Rammed . | . . . . . . . . . . . . . . . . Targets Rammed . | . . . . . . . . . . . . . . . . Kicked . | . . . . . . . . . . . . . . . . Crushed . | . . . . . . . . . . . . . . . . Highest Temperature 286 | . 138 108 45 237 . 120 286 . . 3 . . . 36 127 Average Temperature 57 | . 43 36 9 117 . 46 136 . . 2 . . . 36 71 Received Heat Transfer 1332 | . 441 . 339 9 . . 288 6 12 36 27 21 . 36 117 Effects 1 | . . . . . . . 1 . . . . . . . . Energy Bleed 1 | . . . . . . . 1 . . . . . . . . Siege Activations . | . . . . . . . . . . . . . . . . Robots Corrupted 2 | . 2 . . . . . . . . . . . . . . Combat Hostiles . | . . . . . . . . . . . . . . . . Parts Fried 10 | . 6 . . . . . 4 . . . . . . . . Impact Corruptions 5 | . . . 4 . . . 1 . . . . . . . . Robots Melted . | . . . . . . . . . . . . . . . . Combat Hostiles . | . . . . . . . . . . . . . . . . Parts Melted 2 | . . 1 . . . . 1 . . . . . . . . Heat Transferred 1162 | . 124 100 74 74 . 333 457 . . . . . . . . Parts Sabotaged . | . . . . . . . . . . . . . . . . Parts Stolen . | . . . . . . . . . . . . . . . . Parts Stripped . | . . . . . . . . . . . . . . . . Power Chain Reactions 2 | . 1 1 . . . . . . . . . . . . . Missiles Intercepted . | . . . . . . . . . . . . . . . . Alert | -11 -10 -10 -9 -9 -9 -8 -8 -7 -6 -5 -4 -3 -2 -2 -2 ------- Run | Scr Mat Min Mat Min Exi Min Mat Fac Fac Fac Fac Res Res Qua Sec Peak Influence 1621 | . 182 125 377 251 . 46 428 224 111 113 141 482 59 1603 1621 Average Influence 236 | . 80 35 221 181 . 24 242 133 67 62 74 149 39 1563 1591 Maximum Alert Level 5 | . . . 1 1 . . 2 1 . . . 2 . 5 5 Low Security (%) 66 | . 100 100 40 49 . 100 25 93 100 100 100 75 100 . . Level 1 21 | . . . 59 50 . . 56 6 . . . . . . . Level 2 5 | . . . . . . . 18 . . . . 24 . . . Level 3 . | . . . . . . . . . . . . . . . . Level 4 . | . . . . . . . . . . . . . . . . Level 5 . | . . . . . . . . . . . . . . . . High Security . | . . . . . . . . . . . . . . . . Max Security 6 | . . . . . . . . . . . . . . 99 99 Squads Dispatched 36 | . 2 1 4 . . . 4 1 1 1 1 2 1 12 6 Investigation 6 | . 1 1 1 . . . 1 . 1 . . 1 . . . Extermination 2 | . . . . . . . . . . 1 . 1 . . . Reinforcement 10 | . 1 . 3 . . . 3 1 . . 1 . 1 . . Assault 18 | . . . . . . . . . . . . . . 12 6 Garrison . | . . . . . . . . . . . . . . . . Intercept . | . . . . . . . . . . . . . . . . Construction Impeded 1 | . . . . . . . 1 . . . . . . . . Haulers Reinforced . | . . . . . . . . . . . . . . . . Stealth | -11 -10 -10 -9 -9 -9 -8 -8 -7 -6 -5 -4 -3 -2 -2 -2 --------- Run | Scr Mat Min Mat Min Exi Min Mat Fac Fac Fac Fac Res Res Qua Sec Distress Signals 16 | . 1 1 6 . . . 3 . . 1 . 1 1 . 2 Communications Jammed . | . . . . . . . . . . . . . . . . Distress Signals . | . . . . . . . . . . . . . . . . Times Spotted 214 | . 22 14 41 9 . . 35 5 11 16 13 12 8 8 20 Peak Tracking Total 24 | . 5 3 10 4 . . 6 2 6 14 10 7 6 11 24 Tactical Retreats 25 | . 1 2 2 . . . 2 1 4 2 2 4 1 2 2 Traps | -11 -10 -10 -9 -9 -9 -8 -8 -7 -6 -5 -4 -3 -2 -2 -2 ------- Run | Scr Mat Min Mat Min Exi Min Mat Fac Fac Fac Fac Res Res Qua Sec Traps Triggered 7 | . . . 3 . . . 1 . 1 . . 1 . . 1 Indirectly . | . . . . . . . . . . . . . . . . Trap Hack Attempts . | . . . . . . . . . . . . . . . . Triggered . | . . . . . . . . . . . . . . . . Disarmed . | . . . . . . . . . . . . . . . . Reprogrammed 7 | . . . . . . . . 1 . . . 6 . . . Reused . | . . . . . . . . . . . . . . . . Traps Extracted . | . . . . . . . . . . . . . . . . Installed . | . . . . . . . . . . . . . . . . Triggered . | . . . . . . . . . . . . . . . . Machines | -11 -10 -10 -9 -9 -9 -8 -8 -7 -6 -5 -4 -3 -2 -2 -2 ---------- Run | Scr Mat Min Mat Min Exi Min Mat Fac Fac Fac Fac Res Res Qua Sec Machines Disabled 13 | . . 1 . 2 . . 7 . . 2 1 . . . . Max in Single Turn 2 | . . . . 1 . . 2 . . 2 1 . . . . Machines Sabotaged 1 | . . . . . . . . . 1 . . . . . . Garrisons Compromised . | . . . . . . . . . . . . . . . . Overloaded Fab Kills . | . . . . . . . . . . . . . . . . Fab Network Shutdowns 1 | . . . . . . . . . . . . 1 . . . Hacking | -11 -10 -10 -9 -9 -9 -8 -8 -7 -6 -5 -4 -3 -2 -2 -2 --------- Run | Scr Mat Min Mat Min Exi Min Mat Fac Fac Fac Fac Res Res Qua Sec Machines Accessed 40 | . 2 1 5 . 1 1 1 5 5 4 2 11 2 . . Terminals 25 | . 1 . 4 . . 1 1 3 4 2 1 7 1 . . Fabricators 3 | . . . . . . . . . . 1 . 1 1 . . Repair Stations 2 | . . . 1 . . . . . . 1 . . . . . Recycling Units 6 | . 1 . . . . . . 1 1 . 1 2 . . . Scanalyzers 2 | . . . . . . . . 1 . . . 1 . . . Garrison Access . | . . . . . . . . . . . . . . . . Total Hacks 231 | . 3 1 14 . 1 1 1 35 23 32 6 92 22 . . Successful 137 | . 1 1 4 . 1 1 . 23 10 22 3 56 15 . . Failed 93 | . 2 . 10 . . . 1 12 13 10 3 35 7 . . Catastrophic 27 | . 1 . 4 . . . . 3 4 3 . 12 . . . Database Lockouts 3 | . . . . . . . . . . . . 3 . . . Manual 129 | . 1 . 11 . 1 1 1 13 19 14 5 47 16 . . Terminals 182 | . 1 . 12 . . 1 1 24 20 20 5 78 20 . . Fabricators 9 | . . . . . . . . . . 1 . 6 2 . . Repair Stations 13 | . . . 2 . . . . . . 11 . . . . . Recycling Units 12 | . 2 . . . . . . 2 3 . 1 4 . . . Scanalyzers 13 | . . . . . . . . 9 . . . 4 . . . Garrison Access . | . . . . . . . . . . . . . . . . Terminal Hacks 85 | . . 1 3 . 1 1 . 13 3 10 1 39 13 . . Record 14 | . . . 1 . . . . 1 . . . 3 9 . . Part Schematic 7 | . . . . . . . . . . 2 . 2 3 . . Robot Schematic 1 | . . . . . . . . . . 1 . . . . . Robot Analysis 1 | . . . . . . . . . . . . 1 . . . Prototype ID Bank 6 | . . . . . . . . 2 . 2 . 2 . . . Open Door 1 | . . 1 . . . . . . . . . . . . . Level Access Points 5 | . . . . . . 1 . 1 . 1 1 1 . . . Branch Access Points 3 | . . . 1 . . . . 1 . 1 . . . . . Emergency Access Points 3 | . . . . . . . . 2 . . . 1 . . . Machine Index 1 | . . . . . . . . . . . . 1 . . . Terminal Index 1 | . . . . . . . . . . . . 1 . . . Recycling Unit Index 1 | . . . . . . . . . . . . 1 . . . Scanalyzer Index 1 | . . . . . . . . . . . . 1 . . . Garrison Index 3 | . . . . . . . . 1 1 . . 1 . . . Alert Level 3 | . . . . . . . . . 1 . . 2 . . . Unreport Threat 7 | . . . . . . . . . 1 . . 6 . . . Locate Traps 5 | . . . . . . . . 2 . 1 . 2 . . . Reprogram Traps 2 | . . . . . . . . 1 . . . 1 . . . Dispatch Records 1 | . . . . . . . . . . . . 1 . . . Security Status 1 | . . . . . . . . . . . . 1 . . . Surveillance Status 1 | . . . . . . . . . . . . 1 . . . Patrol Status 2 | . . . . . . . . 1 . . . 1 . . . Transport Status 1 | . . . . . . . . 1 . . . . . . . Assault Status 1 | . . . . . . . . . . . . 1 . . . Intercept Status 1 | . . . . . . . . . . . . 1 . . . Coupling Status 1 | . . . . . . . . . . . . 1 . . . Recall Investigation 1 | . . . . . . . . . . . . 1 . . . Recall Reinforcements 1 | . . . 1 . . . . . . . . . . . . Hauler Manifests 1 | . . . . . . . . . . . . 1 . . . Registered Components 2 | . . . . . . . . . . 1 . 1 . . . Zone Layout 5 | . . . . . . . . . . 1 . 3 1 . . EX-Prototype ID Bank 1 | . . . . . 1 . . . . . . . . . . Fabricator Hacks 9 | . . . . . . . . . . 1 . 6 2 . . Load Schematic 2 | . . . . . . . . . . . . 1 1 . . Build 7 | . . . . . . . . . . 1 . 5 1 . . Repair Station Hacks 11 | . . . 1 . . . . . . 10 . . . . . Scan Component 6 | . . . 1 . . . . . . 5 . . . . . Repair 5 | . . . . . . . . . . 5 . . . . . Recycling Unit Hacks 7 | . 1 . . . . . . . 2 . 1 3 . . . Report Inventory 4 | . . . . . . . . . 1 . 1 2 . . . Retrieve Components 3 | . 1 . . . . . . . 1 . . 1 . . . Scanalyzer 7 | . . . . . . . . 5 . . . 2 . . . Insert Component 3 | . . . . . . . . 2 . . . 1 . . . Analyze 4 | . . . . . . . . 3 . . . 1 . . . Garrison Access Hacks . | . . . . . . . . . . . . . . . . Unauthorized Hacks 44 | . . . 1 . . . . 12 12 2 5 12 . . . Terminals 17 | . . . . . . . . 5 5 1 1 5 . . . Track 4 | . . . . . . . . 1 . 1 1 1 . . . Assimilate 2 | . . . . . . . . . 2 . . . . . . Botnet 7 | . . . . . . . . 2 2 . . 3 . . . Disrupt 1 | . . . . . . . . 1 . . . . . . . Operators 2 | . . . . . . . . 1 . . . 1 . . . Sabotage 1 | . . . . . . . . . 1 . . . . . . Fabricators . | . . . . . . . . . . . . . . . . Repair Stations . | . . . . . . . . . . . . . . . . Recycling Units 1 | . . . . . . . . . . . . 1 . . . Monitor 1 | . . . . . . . . . . . . 1 . . . Scanalyzers . | . . . . . . . . . . . . . . . . Garrison Access . | . . . . . . . . . . . . . . . . Data Cores Recovered . | . . . . . . . . . . . . . . . . Used . | . . . . . . . . . . . . . . . . Hacking Detections 28 | . 1 . 5 . . . 1 4 3 3 1 8 2 . . Full Trace Events 1 | . . . 1 . . . . . . . . . . . . Feedback Events . | . . . . . . . . . . . . . . . . Feedback Blocked . | . . . . . . . . . . . . . . . . Robot Schematics Acquired 1 | . . . . . . . . . . 1 . . . . . Robots Built . | . . . . . . . . . . . . . . . . Matter . | . . . . . . . . . . . . . . . . Time . | . . . . . . . . . . . . . . . . Total Robot Build Rating . | . . . . . . . . . . . . . . . . Part Schematics Acquired 10 | . . . . . . . . 2 . 2 . 3 3 . . Parts Built 6 | . . . . . . . . . . . . 4 2 . . Matter 1294 | . . . . . . . . . . 234 . 848 212 . . Time 364 | . . . . . . . . . . 117 . 212 35 . . Total Part Build Rating 36 | . . . . . . . . . . . . 24 12 . . Parts Repaired 5 | . . . . . . . . . . 5 . . . . . Time 184 | . . . . . . . . . . 184 . . . . . Parts Recycled . | . . . . . . . . . . . . . . . . Recycled Matter . | . . . . . . . . . . . . . . . . Retrieved Matter . | . . . . . . . . . . . . . . . . Retrieved Components 8 | . 3 . . . . . . . 2 . . 3 . . . Parts Scanalyzed 3 | . . . . . . . . 2 . . . 1 . . . Part Schematics Acquired 3 | . . . . . . . . 2 . . . 1 . . . Parts Damaged . | . . . . . . . . . . . . . . . . Bothacking | -11 -10 -10 -9 -9 -9 -8 -8 -7 -6 -5 -4 -3 -2 -2 -2 ------------ Run | Scr Mat Min Mat Min Exi Min Mat Fac Fac Fac Fac Res Res Qua Sec Used RIF Installer . | . . . . . . . . . . . . . . . . Robots Hacked . | . . . . . . . . . . . . . . . . Non-combat . | . . . . . . . . . . . . . . . . Combat . | . . . . . . . . . . . . . . . . Robot Hacks Applied . | . . . . . . . . . . . . . . . . Relay Couplers Released . | . . . . . . . . . . . . . . . . Robots Rewired . | . . . . . . . . . . . . . . . . Allies Hacked . | . . . . . . . . . . . . . . . . Hacks Repelled 1 | . . . . . . . . . . 1 . . . . . Allies | -11 -10 -10 -9 -9 -9 -8 -8 -7 -6 -5 -4 -3 -2 -2 -2 -------- Run | Scr Mat Min Mat Min Exi Min Mat Fac Fac Fac Fac Res Res Qua Sec Total Allies 7 | . . 2 . 3 . . . . 2 . . . . . . Largest Group 3 | . . 2 . 3 3 3 1 . 2 2 . . . . . Highest-Rated Group 52 | . . 43 . 40 40 40 16 . 52 52 . . . . . Highest-Rated Ally 31 | . . 31 . 16 16 16 16 . 26 26 . . . . . Total Orders 8 | . . . . . . 1 3 . 2 2 . . . . . STAY 1 | . . . . . . . . . 1 . . . . . . GOTO 4 | . . . . . . 1 2 . . 1 . . . . . FOLLOW 3 | . . . . . . . 1 . 1 1 . . . . . Ally Attacks 31 | . . 3 . 19 . 7 2 . . . . . . . . Total Damage 368 | . . 62 . 199 . 90 17 . . . . . . . . Kills 10 | . . 1 . 7 . 2 . . . . . . . . . Allies Corrupted . | . . . . . . . . . . . . . . . . Allies Melted . | . . . . . . . . . . . . . . . . Intel | -11 -10 -10 -9 -9 -9 -8 -8 -7 -6 -5 -4 -3 -2 -2 -2 ------- Run | Scr Mat Min Mat Min Exi Min Mat Fac Fac Fac Fac Res Res Qua Sec Robot Analysis Total 1 | . . . . . . . . . . . . 1 . . . Derelict Logs Recovered 1 | . . 1 . . . . . . . . . . . . . Drone Launches . | . . . . . . . . . . . . . . . . Drone Recoveries . | . . . . . . . . . . . . . . . . Exploration | -11 -10 -10 -9 -9 -9 -8 -8 -7 -6 -5 -4 -3 -2 -2 -2 ------------- Run | Scr Mat Min Mat Min Exi Min Mat Fac Fac Fac Fac Res Res Qua Sec Turns Passed 7680 | . 771 857 1005 562 247 377 1211 441 339 348 157 740 114 327 184 Spaces Moved 7670 | 1 468 733 594 520 240 277 595 950 689 353 326 1273 213 223 215 Core 326 | . . . 4 . . . . . . . . . . 107 215 Treads 662 | . . . 122 . . . 533 7 . . . . . . . Legs 325 | 1 324 . . . . . . . . . . . . . . Wheels 2444 | . 144 733 468 520 240 277 62 . . . . . . . . Hover . | . . . . . . . . . . . . . . . . Flight 3913 | . . . . . . . . 943 689 353 326 1273 213 116 . Fastest Speed 34 | 120 110 90 90 100 100 100 120 34 34 34 37 34 34 40 50 Average Speed 73 | 120 117 96 129 100 100 109 166 35 34 34 37 34 35 45 50 Slowest Speed 950 | 120 150 110 950 100 100 110 180 172 117 37 37 37 40 250 50 Overloaded Moves . | . . . . . . . . . . . . . . . . Propulsion Burnouts . | . . . . . . . . . . . . . . . . Robots Hopped 20 | . . . . . . . . 1 7 1 2 9 . . . Cave-ins Triggered 6 | . . . . . . . . . . . . . . 5 1 Exploration Rate (%) 37 | 2 52 101 56 91 61 47 42 27 20 13 12 31 8 23 17 Regions Visited 15 Branch Regions 6 Pre-discovered Areas 1 | . . . . 1 . . . . . . . . . . . Known Exits Taken 8 | . . . 1 1 1 1 . 1 . 1 1 1 . . . Unknown Exits Taken 7 | 1 1 1 . . . . 1 . 1 . . . 1 1 . Scrap Searched 2 | . . 1 . 1 . . . . . . . . . . . Spaces Dug 171 | . . . 2 . . . 14 9 8 . 6 27 3 90 12 Terrain Destroyed 356 | . 2 13 48 . . . 138 9 8 . 6 27 3 90 12 Melee 171 | . . . 2 . . . 14 9 8 . 6 27 3 90 12 Projectile 1 | . . . 1 . . . . . . . . . . . . AOE 184 | . 2 13 45 . . . 124 . . . . . . . . Actions | -11 -10 -10 -9 -9 -9 -8 -8 -7 -6 -5 -4 -3 -2 -2 -2 --------- Run | Scr Mat Min Mat Min Exi Min Mat Fac Fac Fac Fac Res Res Qua Sec Total 9119 | . 591 850 735 557 248 340 734 1030 768 571 348 1516 246 312 273 Wait 758 | . 25 68 19 20 1 54 55 17 50 205 3 172 26 . 43 Move 7611 | . 467 732 593 519 239 276 594 947 676 350 321 1254 212 217 214 Hop 18 | . . . . . . . . 1 5 1 2 9 . . . Pick Up 88 | . 8 11 21 6 1 . 10 7 7 2 5 10 . . . Fast Attach 56 | . 8 2 12 1 2 . 3 1 2 5 4 14 . . 2 Attach 42 | . 1 4 10 . . . 5 6 6 1 4 4 1 . . Detach 20 | . 1 . 3 . . . 2 3 3 . . 6 2 . . Swap 45 | . 9 1 13 1 1 2 10 5 2 . . 1 . . . Drop 86 | . 11 8 4 6 4 2 5 20 4 3 2 15 1 . 1 Fire 179 | . 61 24 45 4 . 6 30 . 5 4 . . . . . Melee 210 | . . . 15 . . . 20 23 8 . 7 31 4 90 12 Ram . | . . . . . . . . . . . . . . . . Kick . | . . . . . . . . . . . . . . . . Crush . | . . . . . . . . . . . . . . . . Escape Stasis 6 | . . . . . . . . . . . . . . 5 1 Rewire . | . . . . . . . . . . . . . . . . Trap . | . . . . . . . . . . . . . . . . Miscellaneous . | . . . . . . . . . . . . . . . . Route ------- -11/Scrapyard -10/Materials (discovered 3 exits: *Mat x2 / *Min) -10/Mines (discovered 2 exits: *Mat x2) -9/Materials (discovered 6 exits: *Mat x2 / *Min x2 / *Sto x2) -9/Mines (discovered 3 exits: *Mat x2 / *Exi) -9/Exiles -8/Mines (discovered 2 exits: *Mat x2) -8/Materials -7/Factory (discovered 6 exits: *Fac x4 / Low x2) -6/Factory (discovered 2 exits: *Fac x2) -5/Factory (discovered 6 exits: *Fac x4 / Upp x2) -4/Factory (discovered 4 exits: *Res x4) -3/Research (discovered 4 exits: *Res x3 / [*Tes]) -2/Research -2/Quarantine -2/Section 7 History --------- Turn | Location | Event 1 | -11/Scrapyard | Discovered new exit (range 0) 1 | -11/Scrapyard | Entered Materials 21 | -10/Materials | Discovered new exit (range 16) 204 | -10/Materials | Lost 5 parts (1p1n3w) 285 | -10/Materials | Discovered new exit (range 16) 526 | -10/Materials | Discovered new exit (range 11) 582 | -10/Materials | Build established: Mutant 772 | -10/Materials | Entered Mines 774 | -10/Mines | Found a damaged Exp. Sensor Array with a note attached 778 | -10/Mines | Found Prototype Device 783 | -10/Mines | Identified Exp. Sensor Array 797 | -10/Mines | Learned Materials security intel 824 | -10/Mines | Assembled infested the area 829 | -10/Mines | Assisted by a Guerilla fighting off Assembled 955 | -10/Mines | Met a Derelict shopkeep closing up shop 1089 | -10/Mines | Discovered new exit (range 8) 1587 | -10/Mines | Core integrity fell below 50% 1620 | -10/Mines | Discovered new exit (range 7) 1629 | -10/Mines | Entered Materials 1629 | -9/Materials | Evolved 2 slots: Utility x2 1932 | -9/Materials | Discovered new exit (range 13) 1955 | -9/Materials | Discovered new exit (range 14) 2208 | -9/Materials | Core integrity fell below 50% 2287 | -9/Materials | Build established: Hauler-Mutant 2295 | -9/Materials | Lost 6 parts (2p1n1u2w) 2382 | -9/Materials | Discovered new exit (range 12) 2430 | -9/Materials | Identified exit to Mines 2430 | -9/Materials | Identified exit to Storage 2534 | -9/Materials | Core integrity fell below 20% 2634 | -9/Materials | Entered Mines 2637 | -9/Mines | Assisted by bots powering up and referring to "LRC-V3" 2678 | -9/Mines | Met a Derelict bent on vengeance 2692 | -9/Mines | Learned location of Storage (-9) 2799 | -9/Mines | Received a Rocket Launcher from a helpful Derelict 2814 | -9/Mines | Discovered new exit (range 6) 2867 | -9/Mines | Joined a pair of Derelicts in attacking an 0b10 outpost 3044 | -9/Mines | Discovered new exit (range 12) 3137 | -9/Mines | Discovered new exit (range 5) 3196 | -9/Mines | Identified exit to Exiles 3196 | -9/Mines | Entered Exiles 3196 | -9/Exiles | Accompanied by 3 allies 3221 | -9/Exiles | Met 8R-AWN 3237 | -9/Exiles | Met EX-HEX 3264 | -9/Exiles | Met EX-BIN 3277 | -9/Exiles | Aligned with FarCom system 3278 | -9/Exiles | Given EX-Vault access code 3303 | -9/Exiles | Opened EX-Vault 3311 | -9/Exiles | Found Latent Energy Streamer 3316 | -9/Exiles | Found Chronowheel 3340 | -9/Exiles | Warned to stay clear of 0b10 Research branches 3374 | -9/Exiles | Met EX-DEC 3432 | -9/Exiles | Discovered new exit (range 11) 3441 | -9/Exiles | Identified exit to Mines 3443 | -9/Exiles | Left Exiles lab with Chronowheel 3443 | -9/Exiles | Entered Mines 3443 | -8/Mines | Accompanied by 3 allies 3535 | -8/Mines | Identified exit to Materials 3820 | -8/Mines | Entered Materials 3820 | -8/Materials | Accompanied by 1 ally 3820 | -8/Materials | Evolved 2 slots: Utility x2 3991 | -8/Materials | Lost 4 parts (1p1n1u1w) 4412 | -8/Materials | Build established: Hauler-Assassin 4920 | -8/Materials | Discovered new exit (range 16) 5031 | -8/Materials | Entered Factory 5031 | -7/Factory | Evolved 2 slots: Propulsion x1, Utility x1 5324 | -7/Factory | Identified exit to Factory 5335 | -7/Factory | Build established: Hacker-Scout 5394 | -7/Factory | Identified exit to Lower Caves 5472 | -7/Factory | Entered another Factory area 5472 | -6/Factory | Evolved 2 slots: Utility x2 5577 | -6/Factory | Discovered new exit (range 16) 5758 | -6/Factory | Build established: Wizard-Scout 5776 | -6/Factory | Discovered new exit (range 8) 5811 | -6/Factory | Entered another Factory area 5811 | -5/Factory | Accompanied by 2 allies 5811 | -5/Factory | Evolved 2 slots: Utility x2 5888 | -5/Factory | Repaired Lgt. Deuterium Engine 5933 | -5/Factory | Repaired Xenon Bombardment Thruster 5967 | -5/Factory | Repaired VTOL Module 6000 | -5/Factory | Repaired EMP Blaster 6040 | -5/Factory | Repaired Katana 6063 | -5/Factory | Identified exit to Factory 6115 | -5/Factory | Identified exit to Upper Caves 6158 | -5/Factory | Lost 4 parts (1n2u1w) 6159 | -5/Factory | Entered another Factory area 6159 | -4/Factory | Evolved 2 slots: Utility x2 6180 | -4/Factory | Identified exit to Research 6316 | -4/Factory | Entered Research 6316 | -3/Research | Evolved 2 slots: Power x1, Propulsion x1 6363 | -3/Research | Found Antimissile System 6392 | -3/Research | Discovered new exit (range 9) 6433 | -3/Research | Identified exit to Research 6499 | -3/Research | Found Fusion Bomb Launcher 6524 | -3/Research | Central database locked down 6530 | -3/Research | Build established: Wizard-Mutant 6601 | -3/Research | Fabricated Adv. Hacking Suite? 6660 | -3/Research | Fabricated Adv. Hacking Suite? 6756 | -3/Research | Fabricated Adv. Hacking Suite (x1) 6811 | -3/Research | Fabricated Adv. Hacking Suite (x1) 6819 | -3/Research | Local fabrication network quarantined 7006 | -3/Research | Found Prototype Processor 7006 | -3/Research | Identified Exp. Targeting Computer 7056 | -3/Research | Entered another Research area 7056 | -2/Research | Evolved 2 slots: Utility x2 7108 | -2/Research | Fabricated Nuclear Pulse Array? 7165 | -2/Research | Discovered new exit (range 14) 7170 | -2/Research | Entered Quarantine 7171 | -2/Quarantine | Maximum security lockdown engaged 7183 | -2/Quarantine | Lost 3 parts (2n1u) 7274 | -2/Quarantine | Crushed by falling debris 7283 | -2/Quarantine | Crushed by falling debris 7309 | -2/Quarantine | Crushed by falling debris 7310 | -2/Quarantine | System corruption reached 10% 7343 | -2/Quarantine | Lost 5 parts (1p1n3u) 7378 | -2/Quarantine | Crushed by falling debris 7451 | -2/Quarantine | Crushed by falling debris 7494 | -2/Quarantine | Discovered new exit (range 6) 7497 | -2/Quarantine | Entered Section 7 7498 | -2/Section 7 | Maximum security lockdown engaged 7623 | -2/Section 7 | Crushed by falling debris 7635 | -2/Section 7 | Core integrity fell below 50% 7667 | -2/Section 7 | Core integrity fell below 20% 7670 | -2/Section 7 | Spotted Alpha 7 7670 | -2/Section 7 | Spotted Alpha 7 7680 | -2/Section 7 | Spotted B-99 Colossus 7681 | -2/Section 7 | Destroyed by Alpha 7 with Multirail Last Messages --------------- 07653_ Slug penetrates Wall. 07653_ System Shield destroyed. 07653_ Slug penetrates Wall. 07655_ Penetrated by Slug. 07655_ Slug penetrates Wall. 07658_ Penetrated by Slug. 07664_ Triggered Gamma Bomb Trap. 07664_ A bubble of electromagnetic force engulfs the area. 07664_ Door malfunctions. 07666_ Slug penetrates Wall. 07668_ System corrupted: Matter fused (-6). 07672_ Penetrated by Slug. 07672_ System Shield destroyed. 07675_ Penetrated by Slug. 07675_ Adv. Hacking Suite destroyed. 07675_ Penetrated by Slug. 07678_ Slug penetrates Machine. 07680_ Penetrated by Slug. 07680_ Slug penetrates Machine. 07681_ Penetrated by Slug. Map ----- +----------------------------------------------------+ | ?????????????????????????????????????????????????? | | ?????????????????????????????????????????????????? | | ?????????????????????????????????????????????????? | | ?????????????????????????????????????????????????? | | ?????????????????????????????????????????????????? | | ?????????????? ?????????????????????????????????? | | ????????????? ???w?????????????????????????? | | ???????????? ??????????????????????????????? | | ???????????? "??????????????????????????????? | | ???????????? "??????????????????????????????? | | ?????????#" """"???? ??????????????????????? | | ?????????#"" ???? ?????????????????????? | | ?????????#""" ?????? ????????????????????? | | ?????????#""" "??????? ???????????????????? | | ???????###""" "????""" ???????????????????? | | ##+##### # """""" ???????????????????? | | / ????????????????????? | | 7/ ????????? ???????????? | | / "????????" ??????????? | | 7 w """???? ??????????? | | ##"## # "??? ??????????? | | #######""" """"" ?????????? | | #?????#""" ?????????? | | #?????#""" ????????? | | #?????#"" ????????? | | #?????#" @ ""?????????? | | #?????# """""""""""" #???????????? | | #?????# """""""""""" #???????????? | | #?????#####################BB###++#???????????? | | #???????????????????????????B#????????????????? | | #?????????????????????????????????????????????? | | #?????????????????????????????????????????????? | | ^ #?????????????????????????????????????????????? | | #?????????????????????????????????????????????? | | #?????????????????????????????????????????????? | | #?????????????????????????????????????????????? | | #?????????????????????????????????????????????? | | #?????????????????????????????????????????????? | | #?????????????????????????????????????????????? | | #?????????????????????????????????????????????? | | ###???????????????????????????????????????????? | | T#???????????????????????????????????????????? | | ""#???????????????????????????????????????????? | | ###???????????????????????????????????????????? | | #?????????????????????????????????????????????? | | #?????????????????????????????????????????????? | | #?????????????????????????????????????????????? | | #?????????????????????????????????????????????? | | #?????????????????????????????????????????????? | | #?????????????????????????????????????????????? | +----------------------------------------------------+ Best States ------------- Heat Dissipation 49 Energy Generation 39 Energy Capacity 280 Matter Stores 300 Matter Capacity 300 Sight Range 16 Robot Scan Range 30 Terrain Scan Range 16 Terrain Scan Density 210 Armor Coverage 225 Resistance: EM 25 Utility Shielding 66 Weapon Shielding 66 Point Defense Rating 240 Phase Shifting 5 Evasion (%) 78 Launcher Accuracy 20 Recoil Reduction 2 Offensive Hacking 66 Defensive Hacking 56 Item Schematics ----------------- System Shield | -7/Factory | Scanalyzed Maneuvering Thrusters | -7/Factory | Scanalyzed Imp. Hacking Suite | -5/Factory | Hacked Imp. System Shield | -5/Factory | Hacked Adv. Hacking Suite | -3/Research | Hacked Nuclear Pulse Array | -3/Research | Scanalyzed Lgt. Quantum Reactor | -3/Research | Hacked Adv. System Shield | -2/Research | Hacked Adv. ECM Suite | -2/Research | Hacked Adv. Cloaking Device | -2/Research | Hacked Robot Schematics ------------------ P-70 Sage | -5/Factory | Hacked Fabricated ------------ Adv. Hacking Suite | x1 | -3/Research Adv. Hacking Suite | x1 | -3/Research Adv. Hacking Suite | x1 | -3/Research Adv. Hacking Suite | x1 | -3/Research Nuclear Pulse Array | x2 | -2/Research Alien Tech Used ----------------- None Achievements -------------- None Challenges ------------ None Game ------ Seed CoolantDroneArray Manual? 0 Play Time 02:30:29 Cumulative 93.2 hours Start 2020.01.02 @ 11:45:47 End 2020.01.02 @ 14:56:06 Sessions 1 Manual Loads 0 Difficulty Rogue Special Mode None Game No. 83 Rogue 83 Adventurer 0 Explorer 0 Win Type - Total 0 Types 0/0/0/0/0/0/0 Lore% 49 Gallery% 54 Achievement% 39 Wizard Run 0 Options --------- ASCII 0 Keyboard 1 Movement Numpad Keybinds 0 Fullscreen 2 Font 18/Terminus Map View 76x50 Tactical HUD 1 Map Filters NONE Filters NONE Steam 1 RUN: 7fceda20-2e3b-4808-a0c7-f5072e97e538